[Event "Titled Tuesday Blitz July 11 Late 2023"]
[White "Harriott, Tyrell"]
[Black "Chen, Max"]
[WhiteFideId "2086484"]
[BlackFideId "2622440"]
[WhiteElo "2397"]
[BlackElo "2560"]
[Result "0-1"]
[Round "6"]
[TimeControl "180+2"]
[Date "2023.07.11"]
[WhiteClock "0:00:59"]
[BlackClock "0:00:53"]
[Board "74"]

1. d4 {[%clk 0:03:00]}  Nf6 {[%clk 0:02:56]} 2. e3 {[%clk 0:03:01]}  g6 {[%clk 0:02:56]} 3. Bd3 {[%clk 0:03:02]}  b6 {[%clk 0:02:55]} 4. f4 {[%clk 0:03:02]}  Bb7 {[%clk 0:02:55]} 5. Nf3 {[%clk 0:03:02]}  c5 {[%clk 0:02:53]} 6. O-O {[%clk 0:03:02]}  Bg7 {[%clk 0:02:53]} 7. Nbd2 {[%clk 0:03:01]}  O-O {[%clk 0:02:53]} 8. f5 {[%clk 0:03:01]}  d6 {[%clk 0:02:45]} 9. Qe1 {[%clk 0:03:01]}  Nc6 {[%clk 0:02:43]} 10. Qh4 {[%clk 0:03:00]}  Nb4 {[%clk 0:02:42]} 11. fxg6 {[%clk 0:03:00]}  hxg6 {[%clk 0:02:34]} 12. Ng5 {[%clk 0:03:00]}  Re8 {[%clk 0:02:33]} 13. Bc4 {[%clk 0:02:46]}  d5 {[%clk 0:02:29]} 14. Bb3 {[%clk 0:02:43]}  Ba6 {[%clk 0:02:20]} 15. c3 {[%clk 0:02:35]}  Bxf1 {[%clk 0:02:15]} 16. cxb4 {[%clk 0:02:35]}  Bd3 {[%clk 0:02:10]} 17. bxc5 {[%clk 0:02:33]}  bxc5 {[%clk 0:02:11]} 18. dxc5 {[%clk 0:02:33]}  Qc7 {[%clk 0:02:01]} 19. Bxd5 {[%clk 0:02:32]}  Nxd5 {[%clk 0:01:57]} 20. b3 {[%clk 0:02:22]}  Qe5 {[%clk 0:01:48]} 21. Rb1 {[%clk 0:02:03]}  Qxe3+ {[%clk 0:01:45]} 22. Kh1 {[%clk 0:02:02]}  Bxb1 {[%clk 0:01:42]} 23. Bb2 {[%clk 0:01:57]}  e5 {[%clk 0:01:23]} 24. Ndf3 {[%clk 0:01:51]}  Qe2 {[%clk 0:01:13]} 25. Bxe5 {[%clk 0:01:46]}  Qf1+ {[%clk 0:01:06]} 26. Ng1 {[%clk 0:01:44]}  Rxe5 {[%clk 0:01:06]} 27. Qh7+ {[%clk 0:01:43]}  Kf8 {[%clk 0:01:06]} 28. Qh4 {[%clk 0:01:37]}  Re2 {[%clk 0:01:03]} 29. Qg3 {[%clk 0:01:34]}  Rae8 {[%clk 0:00:57]} 30. Nf3 {[%clk 0:01:31]}  Ne3 {[%clk 0:00:54]} 31. Qd6+ {[%clk 0:01:28]}  Kg8 {[%clk 0:00:54]} 32. Qg3 {[%clk 0:01:25]}  Rxg2 {[%clk 0:00:54]} 33. c6 {[%clk 0:01:00]}  Rxg1+ {[%clk 0:00:52]} 34. Qxg1 {[%clk 0:00:59]}  Qxf3+ {[%clk 0:00:52]} 35. Qg2 {[%clk 0:00:59]}  Qxg2# {[%clk 0:00:53]} 0-1


[Site "https://www.chess.com"]

[Event "Titled Tuesday Blitz July 11 Late 2023"]
[White "Michalczak, Thomas"]
[Black "Semenenko, Dmytry"]
[WhiteFideId "4622634"]
[BlackFideId "14118645"]
[WhiteElo "2552"]
[BlackElo "2371"]
[Result "1-0"]
[Round "6"]
[TimeControl "180+2"]
[Date "2023.07.11"]
[WhiteClock "0:00:24"]
[BlackClock "0:00:02"]
[Board "76"]

1. e4 {[%clk 0:03:00]}  Nf6 {[%clk 0:02:59]} 2. e5 {[%clk 0:03:00]}  Nd5 {[%clk 0:02:58]} 3. d4 {[%clk 0:03:00]}  d6 {[%clk 0:02:58]} 4. Nf3 {[%clk 0:03:01]}  Bg4 {[%clk 0:02:58]} 5. Be2 {[%clk 0:03:01]}  c6 {[%clk 0:02:58]} 6. c4 {[%clk 0:02:58]}  Nb6 {[%clk 0:02:58]} 7. a4 {[%clk 0:02:55]}  a5 {[%clk 0:02:57]} 8. Nbd2 {[%clk 0:02:54]}  g6 {[%clk 0:02:49]} 9. O-O {[%clk 0:02:48]}  Bg7 {[%clk 0:02:47]} 10. h3 {[%clk 0:02:39]}  Bf5 {[%clk 0:02:46]} 11. exd6 {[%clk 0:02:32]}  exd6 {[%clk 0:02:45]} 12. Re1 {[%clk 0:02:32]}  O-O {[%clk 0:02:44]} 13. b3 {[%clk 0:02:21]}  c5 {[%clk 0:02:40]} 14. Bb2 {[%clk 0:02:19]}  Nc6 {[%clk 0:02:40]} 15. Nf1 {[%clk 0:02:17]}  Be4 {[%clk 0:02:34]} 16. N1h2 {[%clk 0:02:11]}  Re8 {[%clk 0:02:04]} 17. Qd2 {[%clk 0:02:09]}  Qf6 {[%clk 0:01:58]} 18. Ng4 {[%clk 0:02:04]}  Qf5 {[%clk 0:01:50]} 19. Nh6+ {[%clk 0:01:46]}  Bxh6 {[%clk 0:01:48]} 20. Qxh6 {[%clk 0:01:47]}  Bxf3 {[%clk 0:01:42]} 21. dxc5 {[%clk 0:01:44]}  Ne5 {[%clk 0:01:28]} 22. cxb6 {[%clk 0:01:29]}  Bxe2 {[%clk 0:01:22]} 23. Rxe2 {[%clk 0:01:30]}  f6 {[%clk 0:01:17]} 24. Rae1 {[%clk 0:01:27]}  Qd3 {[%clk 0:00:57]} 25. Re3 {[%clk 0:01:18]}  Qd2 {[%clk 0:00:54]} 26. Bc3 {[%clk 0:01:07]}  Qc2 {[%clk 0:00:48]} 27. f4 {[%clk 0:01:01]}  Nf3+ {[%clk 0:00:32]} 28. gxf3 {[%clk 0:00:57]}  Rxe3 {[%clk 0:00:31]} 29. Rxe3 {[%clk 0:00:57]}  Qc1+ {[%clk 0:00:31]} 30. Kf2 {[%clk 0:00:56]}  Qc2+ {[%clk 0:00:31]} 31. Kg3 {[%clk 0:00:55]}  Qc1 {[%clk 0:00:26]} 32. Re1 {[%clk 0:00:26]}  Qc2 {[%clk 0:00:02]} 33. Re7 {[%clk 0:00:24]} 1-0


[Site "https://www.chess.com"]

[Event "Titled Tuesday Blitz July 11 Late 2023"]
[White "Yelisieiev, Yevhenii"]
[Black "rionelG"]
[WhiteFideId "14139642"]
[WhiteElo "2539"]
[BlackElo "2278"]
[Result "1-0"]
[Round "6"]
[TimeControl "180+2"]
[Date "2023.07.11"]
[WhiteClock "0:01:31"]
[BlackClock "0:00:12"]
[Board "78"]

1. d4 {[%clk 0:03:00]}  Nf6 {[%clk 0:02:18]} 2. Nf3 {[%clk 0:02:59]}  g6 {[%clk 0:02:18]} 3. g3 {[%clk 0:03:00]}  Bg7 {[%clk 0:02:19]} 4. Bg2 {[%clk 0:03:00]}  O-O {[%clk 0:02:19]} 5. O-O {[%clk 0:03:01]}  d6 {[%clk 0:02:20]} 6. b3 {[%clk 0:03:01]}  Nbd7 {[%clk 0:02:14]} 7. Bb2 {[%clk 0:03:01]}  e5 {[%clk 0:02:15]} 8. dxe5 {[%clk 0:03:01]}  Ng4 {[%clk 0:02:15]} 9. c4 {[%clk 0:03:02]}  Ngxe5 {[%clk 0:02:15]} 10. Nc3 {[%clk 0:03:02]}  Re8 {[%clk 0:02:11]} 11. Qd2 {[%clk 0:03:01]}  Nxf3+ {[%clk 0:02:10]} 12. exf3 {[%clk 0:03:01]}  Nc5 {[%clk 0:01:58]} 13. Nd5 {[%clk 0:02:59]}  c6 {[%clk 0:01:40]} 14. Bxg7 {[%clk 0:02:57]}  Kxg7 {[%clk 0:01:35]} 15. Qd4+ {[%clk 0:02:49]}  f6 {[%clk 0:01:35]} 16. Nc3 {[%clk 0:02:41]}  Bf5 {[%clk 0:01:24]} 17. Rad1 {[%clk 0:02:40]}  Qb6 {[%clk 0:01:18]} 18. g4 {[%clk 0:02:35]}  Be6 {[%clk 0:00:52]} 19. g5 {[%clk 0:02:29]}  Rf8 {[%clk 0:00:47]} 20. Qxd6 {[%clk 0:02:29]}  fxg5 {[%clk 0:00:34]} 21. b4 {[%clk 0:01:35]}  Qxb4 {[%clk 0:00:17]} 22. Ne4 {[%clk 0:01:35]}  Bxc4 {[%clk 0:00:17]} 23. Nxc5 {[%clk 0:01:32]}  Bxf1 {[%clk 0:00:15]} 24. Ne6+ {[%clk 0:01:31]}  Kh6 {[%clk 0:00:12]} 25. Qxb4 {[%clk 0:01:31]} 1-0


[Site "https://www.chess.com"]

[Event "Titled Tuesday Blitz July 11 Late 2023"]
[White "Navyblue1"]
[Black "Hajiyev, Kanan"]
[BlackFideId "13404148"]
[WhiteElo "1869"]
[BlackElo "2537"]
[Result "0-1"]
[Round "6"]
[TimeControl "180+2"]
[Date "2023.07.11"]
[WhiteClock "0:00:00"]
[BlackClock "0:00:08"]
[Board "79"]

1. d4 {[%clk 0:03:00]}  Nf6 {[%clk 0:02:58]} 2. c4 {[%clk 0:03:01]}  e6 {[%clk 0:02:59]} 3. Nc3 {[%clk 0:02:57]}  Bb4 {[%clk 0:02:57]} 4. Nf3 {[%clk 0:02:57]}  O-O {[%clk 0:02:56]} 5. g3 {[%clk 0:02:57]}  Ne4 {[%clk 0:02:54]} 6. Qc2 {[%clk 0:02:52]}  d5 {[%clk 0:02:54]} 7. cxd5 {[%clk 0:02:49]}  exd5 {[%clk 0:02:52]} 8. Bd2 {[%clk 0:02:39]}  Bf5 {[%clk 0:02:43]} 9. Qc1 {[%clk 0:02:27]}  c5 {[%clk 0:01:59]} 10. Bg2 {[%clk 0:01:55]}  Nc6 {[%clk 0:01:50]} 11. dxc5 {[%clk 0:01:23]}  Nxd2 {[%clk 0:01:35]} 12. Nxd2 {[%clk 0:01:16]}  Nd4 {[%clk 0:01:15]} 13. e4 {[%clk 0:00:32]}  dxe4 {[%clk 0:01:04]} 14. a3 {[%clk 0:00:28]}  Bxc5 {[%clk 0:00:55]} 15. O-O {[%clk 0:00:19]}  Rc8 {[%clk 0:00:52]} 16. Qd1 {[%clk 0:00:16]}  Re8 {[%clk 0:00:48]} 17. Ndxe4 {[%clk 0:00:15]}  Bb6 {[%clk 0:00:33]} 18. Re1 {[%clk 0:00:13]}  h6 {[%clk 0:00:29]} 19. Rc1 {[%clk 0:00:13]}  a6 {[%clk 0:00:28]} 20. h4 {[%clk 0:00:13]}  Qd7 {[%clk 0:00:24]} 21. Qd3 {[%clk 0:00:11]}  Rcd8 {[%clk 0:00:16]} 22. Qf1 {[%clk 0:00:12]}  Nb3 {[%clk 0:00:10]} 23. Rcd1 {[%clk 0:00:12]}  Qc8 {[%clk 0:00:11]} 24. Kh1 {[%clk 0:00:09]}  Qb8 {[%clk 0:00:09]} 25. Kh2 {[%clk 0:00:08]}  Qa7 {[%clk 0:00:08]} 26. f3 {[%clk 0:00:04]}  Nd4 {[%clk 0:00:07]} 27. Kh1 {[%clk 0:00:03]}  Be6 {[%clk 0:00:07]} 28. Rd2 {[%clk 0:00:02]}  Nb3 {[%clk 0:00:07]} 29. Rxd8 {[%clk 0:00:02]}  Rxd8 {[%clk 0:00:08]} 30. Rd1 {[%clk 0:00:03]}  Rc8 {[%clk 0:00:07]} 31. Qe2 {[%clk 0:00:00]}  Nd4 {[%clk 0:00:08]} 0-1


[Site "https://www.chess.com"]

[Event "Titled Tuesday Blitz July 11 Late 2023"]
[White "Rosen, Eric"]
[Black "Papayan, Oleg"]
[WhiteFideId "2032562"]
[BlackFideId "4193911"]
[WhiteElo "2690"]
[BlackElo "2506"]
[Result "1-0"]
[Round "6"]
[TimeControl "180+2"]
[Date "2023.07.11"]
[WhiteClock "0:00:13"]
[BlackClock "0:00:00"]
[Board "82"]

1. e4 {[%clk 0:03:00]}  c5 {[%clk 0:02:56]} 2. Nf3 {[%clk 0:03:00]}  Nc6 {[%clk 0:02:54]} 3. b4 {[%clk 0:02:58]}  Nxb4 {[%clk 0:02:52]} 4. c3 {[%clk 0:02:57]}  Nc6 {[%clk 0:02:51]} 5. d4 {[%clk 0:02:57]}  cxd4 {[%clk 0:02:50]} 6. cxd4 {[%clk 0:02:57]}  d5 {[%clk 0:02:51]} 7. Nc3 {[%clk 0:02:50]}  e6 {[%clk 0:02:48]} 8. e5 {[%clk 0:02:39]}  Bb4 {[%clk 0:02:45]} 9. Bd2 {[%clk 0:02:39]}  Nge7 {[%clk 0:02:42]} 10. Bd3 {[%clk 0:02:37]}  Nf5 {[%clk 0:02:40]} 11. Bxf5 {[%clk 0:02:35]}  exf5 {[%clk 0:02:41]} 12. Ne2 {[%clk 0:02:35]}  O-O {[%clk 0:02:32]} 13. O-O {[%clk 0:02:34]}  Bxd2 {[%clk 0:02:27]} 14. Qxd2 {[%clk 0:02:34]}  Be6 {[%clk 0:02:19]} 15. h4 {[%clk 0:02:32]}  Qa5 {[%clk 0:02:07]} 16. Qe3 {[%clk 0:02:27]}  Rfc8 {[%clk 0:01:44]} 17. h5 {[%clk 0:02:27]}  h6 {[%clk 0:01:43]} 18. a3 {[%clk 0:02:24]}  Nd8 {[%clk 0:01:18]} 19. Qf4 {[%clk 0:02:13]}  Rc2 {[%clk 0:00:41]} 20. Ng3 {[%clk 0:02:09]}  Rac8 {[%clk 0:00:41]} 21. Nxf5 {[%clk 0:02:05]}  Bxf5 {[%clk 0:00:42]} 22. Qxf5 {[%clk 0:02:05]}  Ne6 {[%clk 0:00:42]} 23. a4 {[%clk 0:01:47]}  Qc3 {[%clk 0:00:42]} 24. Rad1 {[%clk 0:01:46]}  Qa3 {[%clk 0:00:31]} 25. Ra1 {[%clk 0:01:24]}  Qc3 {[%clk 0:00:30]} 26. Rad1 {[%clk 0:01:25]}  Qa3 {[%clk 0:00:30]} 27. Rd3 {[%clk 0:01:25]}  R2c3 {[%clk 0:00:30]} 28. Rxc3 {[%clk 0:01:08]}  Qxc3 {[%clk 0:00:31]} 29. Rb1 {[%clk 0:00:49]}  b6 {[%clk 0:00:27]} 30. Rb5 {[%clk 0:00:45]}  Qc4 {[%clk 0:00:08]} 31. Qg4 {[%clk 0:00:29]}  Rc7 {[%clk 0:00:04]} 32. Kh2 {[%clk 0:00:29]}  Qxa4 {[%clk 0:00:04]} 33. Rxd5 {[%clk 0:00:29]}  Rd7 {[%clk 0:00:02]} 34. Rxd7 {[%clk 0:00:26]}  Qxd7 {[%clk 0:00:03]} 35. Qe4 {[%clk 0:00:26]}  b5 {[%clk 0:00:01]} 36. d5 {[%clk 0:00:21]}  Nc5 {[%clk 0:00:02]} 37. Qd4 {[%clk 0:00:20]}  Na4 {[%clk 0:00:02]} 38. g4 {[%clk 0:00:17]}  a5 {[%clk 0:00:02]} 39. Kg3 {[%clk 0:00:13]}  b4 {[%clk 0:00:00]} 40. g5 {[%clk 0:00:13]} 1-0


[Site "https://www.chess.com"]

[Event "Titled Tuesday Blitz July 11 Late 2023"]
[White "Martinez Reyes, Pedro Ramon"]
[Black "Nefedov, Sergey"]
[WhiteFideId "3901807"]
[BlackFideId "24113417"]
[WhiteElo "2504"]
[BlackElo "2662"]
[Result "1-0"]
[Round "6"]
[TimeControl "180+2"]
[Date "2023.07.11"]
[WhiteClock "0:00:20"]
[BlackClock "0:00:09"]
[Board "83"]

1. g4 {[%clk 0:03:00]}  d5 {[%clk 0:02:55]} 2. Bg2 {[%clk 0:02:59]}  c6 {[%clk 0:02:55]} 3. h3 {[%clk 0:02:57]}  e5 {[%clk 0:02:55]} 4. d3 {[%clk 0:02:56]}  Bd6 {[%clk 0:02:53]} 5. Nc3 {[%clk 0:02:56]}  Ne7 {[%clk 0:02:53]} 6. e4 {[%clk 0:02:55]}  d4 {[%clk 0:02:53]} 7. Nce2 {[%clk 0:02:55]}  h5 {[%clk 0:02:52]} 8. g5 {[%clk 0:02:55]}  Ng6 {[%clk 0:02:51]} 9. h4 {[%clk 0:02:55]}  Bg4 {[%clk 0:02:46]} 10. Bd2 {[%clk 0:02:27]}  Nd7 {[%clk 0:02:42]} 11. Bf3 {[%clk 0:02:24]}  Bxf3 {[%clk 0:02:37]} 12. Nxf3 {[%clk 0:02:25]}  Nc5 {[%clk 0:02:37]} 13. Ng3 {[%clk 0:02:24]}  Ne6 {[%clk 0:02:35]} 14. Nf5 {[%clk 0:02:14]}  Qc7 {[%clk 0:02:33]} 15. Ng1 {[%clk 0:02:08]}  O-O-O {[%clk 0:02:32]} 16. Ne2 {[%clk 0:02:06]}  Ne7 {[%clk 0:02:21]} 17. Neg3 {[%clk 0:01:52]}  g6 {[%clk 0:02:20]} 18. Nxe7+ {[%clk 0:01:49]}  Qxe7 {[%clk 0:02:20]} 19. Qe2 {[%clk 0:01:45]}  Bb4 {[%clk 0:02:19]} 20. O-O-O {[%clk 0:01:43]}  Bxd2+ {[%clk 0:02:19]} 21. Qxd2 {[%clk 0:01:42]}  Qc5 {[%clk 0:02:18]} 22. Kb1 {[%clk 0:01:41]}  a5 {[%clk 0:02:18]} 23. Ne2 {[%clk 0:01:39]}  a4 {[%clk 0:02:10]} 24. a3 {[%clk 0:01:38]}  Qd6 {[%clk 0:01:42]} 25. Rdf1 {[%clk 0:01:35]}  Rhe8 {[%clk 0:00:47]} 26. f4 {[%clk 0:01:32]}  Rd7 {[%clk 0:00:42]} 27. f5 {[%clk 0:01:32]}  Nc7 {[%clk 0:00:37]} 28. fxg6 {[%clk 0:01:32]}  fxg6 {[%clk 0:00:38]} 29. Rf6 {[%clk 0:01:32]}  Re6 {[%clk 0:00:38]} 30. Rhf1 {[%clk 0:01:33]}  Rde7 {[%clk 0:00:38]} 31. Qa5 {[%clk 0:01:32]}  Rxf6 {[%clk 0:00:27]} 32. Rxf6 {[%clk 0:01:26]}  Re6 {[%clk 0:00:27]} 33. Rf7 {[%clk 0:01:27]}  Re7 {[%clk 0:00:27]} 34. Rf8+ {[%clk 0:01:26]}  Re8 {[%clk 0:00:27]} 35. Rxe8+ {[%clk 0:01:19]}  Nxe8 {[%clk 0:00:28]} 36. Qa8+ {[%clk 0:01:20]}  Kd7 {[%clk 0:00:29]} 37. Qxb7+ {[%clk 0:01:20]}  Nc7 {[%clk 0:00:29]} 38. Nc1 {[%clk 0:01:08]}  Qf8 {[%clk 0:00:26]} 39. Qa7 {[%clk 0:01:00]}  Qf4 {[%clk 0:00:25]} 40. Qc5 {[%clk 0:01:00]}  Ne6 {[%clk 0:00:22]} 41. Qa7+ {[%clk 0:01:01]}  Nc7 {[%clk 0:00:22]} 42. Qa5 {[%clk 0:00:58]}  Kd6 {[%clk 0:00:20]} 43. Qb4+ {[%clk 0:00:58]}  Kd7 {[%clk 0:00:21]} 44. Qc4 {[%clk 0:00:52]}  Qxh4 {[%clk 0:00:20]} 45. Qf7+ {[%clk 0:00:52]}  Kc8 {[%clk 0:00:20]} 46. Qxg6 {[%clk 0:00:52]}  Kb7 {[%clk 0:00:19]} 47. Qh6 {[%clk 0:00:47]}  Qg4 {[%clk 0:00:20]} 48. g6 {[%clk 0:00:47]}  Ne6 {[%clk 0:00:20]} 49. Qh7+ {[%clk 0:00:40]}  Kb6 {[%clk 0:00:21]} 50. Na2 {[%clk 0:00:31]}  h4 {[%clk 0:00:21]} 51. Nb4 {[%clk 0:00:31]}  h3 {[%clk 0:00:21]} 52. Qd7 {[%clk 0:00:30]}  h2 {[%clk 0:00:10]} 53. Qxc6+ {[%clk 0:00:30]}  Ka7 {[%clk 0:00:10]} 54. Qxa4+ {[%clk 0:00:26]}  Kb8 {[%clk 0:00:09]} 55. Qe8+ {[%clk 0:00:24]}  Kc7 {[%clk 0:00:10]} 56. Nd5+ {[%clk 0:00:24]}  Kd6 {[%clk 0:00:09]} 57. Qe7+ {[%clk 0:00:24]}  Kc6 {[%clk 0:00:09]} 58. Nb4+ {[%clk 0:00:23]}  Kb6 {[%clk 0:00:09]} 59. Qd6+ {[%clk 0:00:23]}  Kb7 {[%clk 0:00:10]} 60. Qd7+ {[%clk 0:00:20]}  Kb8 {[%clk 0:00:10]} 61. Nc6+ {[%clk 0:00:19]}  Ka8 {[%clk 0:00:09]} 62. Qa7# {[%clk 0:00:20]} 1-0


[Site "https://www.chess.com"]

[Event "Titled Tuesday Blitz July 11 Late 2023"]
[White "Rakitic2010"]
[Black "Adewumi, Tanitoluwa"]
[BlackFideId "30966396"]
[WhiteElo "2502"]
[BlackElo "2643"]
[Result "0-1"]
[Round "6"]
[TimeControl "180+2"]
[Date "2023.07.11"]
[WhiteClock "0:00:14"]
[BlackClock "0:00:34"]
[Board "84"]

1. e4 {[%clk 0:03:00]}  c5 {[%clk 0:02:59]} 2. Nf3 {[%clk 0:03:00]}  e6 {[%clk 0:02:59]} 3. d4 {[%clk 0:03:00]}  cxd4 {[%clk 0:03:00]} 4. Nxd4 {[%clk 0:03:01]}  Nc6 {[%clk 0:03:01]} 5. Nc3 {[%clk 0:03:00]}  Nf6 {[%clk 0:03:00]} 6. Ndb5 {[%clk 0:03:01]}  d6 {[%clk 0:03:00]} 7. Bf4 {[%clk 0:03:00]}  e5 {[%clk 0:03:00]} 8. Bg5 {[%clk 0:03:00]}  a6 {[%clk 0:03:00]} 9. Na3 {[%clk 0:03:00]}  b5 {[%clk 0:03:01]} 10. Nd5 {[%clk 0:03:01]}  Be7 {[%clk 0:03:01]} 11. Bxf6 {[%clk 0:03:01]}  Bxf6 {[%clk 0:03:02]} 12. c4 {[%clk 0:03:02]}  b4 {[%clk 0:03:02]} 13. Nc2 {[%clk 0:03:02]}  a5 {[%clk 0:03:03]} 14. g3 {[%clk 0:03:03]}  Bg5 {[%clk 0:02:57]} 15. Bg2 {[%clk 0:03:02]}  O-O {[%clk 0:02:57]} 16. O-O {[%clk 0:03:03]}  g6 {[%clk 0:02:53]} 17. Qd3 {[%clk 0:03:01]}  Bh6 {[%clk 0:02:47]} 18. Rad1 {[%clk 0:03:00]}  Be6 {[%clk 0:02:46]} 19. f4 {[%clk 0:02:59]}  exf4 {[%clk 0:02:46]} 20. gxf4 {[%clk 0:02:59]}  Bg7 {[%clk 0:02:44]} 21. Qg3 {[%clk 0:02:54]}  Bxd5 {[%clk 0:02:29]} 22. cxd5 {[%clk 0:02:50]}  Ne7 {[%clk 0:02:29]} 23. f5 {[%clk 0:02:37]}  Be5 {[%clk 0:02:25]} 24. Qh3 {[%clk 0:02:36]}  Rc8 {[%clk 0:02:19]} 25. Ne3 {[%clk 0:02:34]}  Kh8 {[%clk 0:02:16]} 26. Ng4 {[%clk 0:02:27]}  Bxb2 {[%clk 0:02:08]} 27. Rd3 {[%clk 0:02:19]}  Rc3 {[%clk 0:02:02]} 28. Nf6 {[%clk 0:01:49]}  h5 {[%clk 0:01:48]} 29. Rxc3 {[%clk 0:01:45]}  Bxc3 {[%clk 0:01:46]} 30. Nxh5 {[%clk 0:01:46]}  gxh5 {[%clk 0:01:41]} 31. Qxh5+ {[%clk 0:01:47]}  Kg8 {[%clk 0:01:36]} 32. Rf3 {[%clk 0:01:38]}  Be5 {[%clk 0:01:01]} 33. Qg4+ {[%clk 0:01:20]}  Bg7 {[%clk 0:00:56]} 34. Rg3 {[%clk 0:00:48]}  Nxf5 {[%clk 0:00:52]} 35. exf5 {[%clk 0:00:42]}  Qf6 {[%clk 0:00:51]} 36. Qg5 {[%clk 0:00:33]}  Qd4+ {[%clk 0:00:34]} 37. Qe3 {[%clk 0:00:14]}  Qxe3+ {[%clk 0:00:34]} 0-1


[Site "https://www.chess.com"]

[Event "Titled Tuesday Blitz July 11 Late 2023"]
[White "Grinev, Valeriy"]
[Black "JERO-8914"]
[WhiteFideId "14117517"]
[WhiteElo "2581"]
[BlackElo "2472"]
[Result "0-1"]
[Round "6"]
[TimeControl "180+2"]
[Date "2023.07.11"]
[WhiteClock "0:01:20"]
[BlackClock "0:01:29"]
[Board "86"]

1. e4 {[%clk 0:02:48]}  c6 {[%clk 0:02:59]} 2. d4 {[%clk 0:02:48]}  d5 {[%clk 0:02:59]} 3. e5 {[%clk 0:02:49]}  Bf5 {[%clk 0:02:56]} 4. Nf3 {[%clk 0:02:50]}  e6 {[%clk 0:02:51]} 5. Be2 {[%clk 0:02:49]}  Nd7 {[%clk 0:02:49]} 6. O-O {[%clk 0:02:49]}  Ne7 {[%clk 0:02:47]} 7. a4 {[%clk 0:02:42]}  a5 {[%clk 0:02:43]} 8. Na3 {[%clk 0:02:42]}  Ng6 {[%clk 0:02:41]} 9. c4 {[%clk 0:02:42]}  Bxa3 {[%clk 0:02:32]} 10. Rxa3 {[%clk 0:02:40]}  dxc4 {[%clk 0:02:32]} 11. Bxc4 {[%clk 0:02:39]}  O-O {[%clk 0:02:32]} 12. Bg5 {[%clk 0:02:35]}  Qc7 {[%clk 0:02:28]} 13. h4 {[%clk 0:02:36]}  h6 {[%clk 0:02:23]} 14. Be3 {[%clk 0:02:35]}  Nb6 {[%clk 0:02:20]} 15. Bd3 {[%clk 0:02:33]}  Bxd3 {[%clk 0:02:20]} 16. Qxd3 {[%clk 0:02:34]}  Nd5 {[%clk 0:02:20]} 17. h5 {[%clk 0:02:32]}  Nge7 {[%clk 0:02:17]} 18. Bd2 {[%clk 0:02:29]}  Rfd8 {[%clk 0:02:15]} 19. Qe4 {[%clk 0:02:29]}  Qb6 {[%clk 0:02:09]} 20. Bc1 {[%clk 0:02:25]}  c5 {[%clk 0:02:04]} 21. dxc5 {[%clk 0:02:22]}  Qxc5 {[%clk 0:02:04]} 22. Nd4 {[%clk 0:02:20]}  Qc4 {[%clk 0:01:56]} 23. Rg3 {[%clk 0:01:54]}  Nf5 {[%clk 0:01:50]} 24. Rd1 {[%clk 0:01:39]}  Nb4 {[%clk 0:01:38]} 25. b3 {[%clk 0:01:29]}  Rxd4 {[%clk 0:01:33]} 26. Rxd4 {[%clk 0:01:24]}  Qxd4 {[%clk 0:01:31]} 27. Qxd4 {[%clk 0:01:22]}  Nxd4 {[%clk 0:01:30]} 28. Bxh6 {[%clk 0:01:23]}  Ne2+ {[%clk 0:01:29]} 29. Kh2 {[%clk 0:01:21]}  Nxg3 {[%clk 0:01:30]} 30. fxg3 {[%clk 0:01:20]}  gxh6 {[%clk 0:01:29]} 0-1


[Site "https://www.chess.com"]

[Event "Titled Tuesday Blitz July 11 Late 2023"]
[White "Castella Garcia, Fausto"]
[Black "Rottenwohrer Suarez, Juan"]
[WhiteFideId "3501922"]
[BlackFideId "32068182"]
[WhiteElo "2403"]
[BlackElo "2538"]
[Result "0-1"]
[Round "6"]
[TimeControl "180+2"]
[Date "2023.07.11"]
[WhiteClock "0:00:00"]
[BlackClock "0:00:02"]
[Board "89"]

1. e4 {[%clk 0:02:42]}  c5 {[%clk 0:02:59]} 2. Nf3 {[%clk 0:02:42]}  g6 {[%clk 0:03:00]} 3. Bc4 {[%clk 0:02:41]}  Nc6 {[%clk 0:03:00]} 4. O-O {[%clk 0:02:41]}  Bg7 {[%clk 0:03:00]} 5. c3 {[%clk 0:02:41]}  e6 {[%clk 0:03:00]} 6. d4 {[%clk 0:02:40]}  cxd4 {[%clk 0:03:01]} 7. Nxd4 {[%clk 0:02:41]}  d5 {[%clk 0:02:55]} 8. exd5 {[%clk 0:02:32]}  exd5 {[%clk 0:02:56]} 9. Bb5 {[%clk 0:02:23]}  Ne7 {[%clk 0:02:56]} 10. Bg5 {[%clk 0:02:13]}  f6 {[%clk 0:02:54]} 11. Be3 {[%clk 0:02:10]}  O-O {[%clk 0:02:53]} 12. Bxc6 {[%clk 0:02:09]}  bxc6 {[%clk 0:02:40]} 13. Na3 {[%clk 0:01:56]}  Qd6 {[%clk 0:02:32]} 14. Re1 {[%clk 0:01:50]}  Bd7 {[%clk 0:01:57]} 15. Qd2 {[%clk 0:01:38]}  c5 {[%clk 0:01:48]} 16. Nb3 {[%clk 0:01:35]}  d4 {[%clk 0:01:01]} 17. Bf4 {[%clk 0:01:27]}  Qd5 {[%clk 0:00:47]} 18. c4 {[%clk 0:01:12]}  Qf7 {[%clk 0:00:45]} 19. Nxc5 {[%clk 0:01:09]}  Rfd8 {[%clk 0:00:33]} 20. Bc7 {[%clk 0:00:51]}  Rdc8 {[%clk 0:00:26]} 21. Bd6 {[%clk 0:00:51]}  Nf5 {[%clk 0:00:25]} 22. Ne4 {[%clk 0:00:41]}  Bc6 {[%clk 0:00:19]} 23. c5 {[%clk 0:00:34]}  Qd5 {[%clk 0:00:15]} 24. f3 {[%clk 0:00:33]}  Ne3 {[%clk 0:00:12]} 25. Nc2 {[%clk 0:00:26]}  Nxc2 {[%clk 0:00:11]} 26. Qxc2 {[%clk 0:00:27]}  f5 {[%clk 0:00:11]} 27. Nd2 {[%clk 0:00:20]}  d3 {[%clk 0:00:12]} 28. Qc4 {[%clk 0:00:19]}  Bxb2 {[%clk 0:00:09]} 29. Rab1 {[%clk 0:00:19]}  Bd4+ {[%clk 0:00:10]} 30. Kh1 {[%clk 0:00:18]}  Qxc4 {[%clk 0:00:05]} 31. Nxc4 {[%clk 0:00:19]}  Bd5 {[%clk 0:00:05]} 32. Ne5 {[%clk 0:00:14]}  d2 {[%clk 0:00:05]} 33. Red1 {[%clk 0:00:14]}  Bxc5 {[%clk 0:00:04]} 34. Bxc5 {[%clk 0:00:12]}  Rxc5 {[%clk 0:00:05]} 35. Rxd2 {[%clk 0:00:12]}  Bxa2 {[%clk 0:00:06]} 36. Re1 {[%clk 0:00:08]}  Re8 {[%clk 0:00:03]} 37. f4 {[%clk 0:00:09]}  Bd5 {[%clk 0:00:02]} 38. h4 {[%clk 0:00:08]}  Be4 {[%clk 0:00:03]} 39. Rd7 {[%clk 0:00:07]}  a5 {[%clk 0:00:02]} 40. Red1 {[%clk 0:00:05]}  Rc2 {[%clk 0:00:03]} 41. R1d4 {[%clk 0:00:03]}  Ra2 {[%clk 0:00:02]} 42. Kh2 {[%clk 0:00:02]}  Rxg2+ {[%clk 0:00:01]} 43. Kh3 {[%clk 0:00:03]}  Ra2 {[%clk 0:00:02]} 44. Rc7 {[%clk 0:00:03]}  Ra3+ {[%clk 0:00:02]} 45. Kh2 {[%clk 0:00:02]}  Ra2+ {[%clk 0:00:03]} 46. Kg1 {[%clk 0:00:03]}  Rb8 {[%clk 0:00:03]} 47. Rd1 {[%clk 0:00:01]}  a4 {[%clk 0:00:04]} 48. Rdc1 {[%clk 0:00:01]}  a3 {[%clk 0:00:04]} 49. Rc8+ {[%clk 0:00:02]}  Rxc8 {[%clk 0:00:04]} 50. Rxc8+ {[%clk 0:00:02]}  Kg7 {[%clk 0:00:05]} 51. Rc7+ {[%clk 0:00:03]}  Kf8 {[%clk 0:00:05]} 52. Rxh7 {[%clk 0:00:02]}  Ra1+ {[%clk 0:00:04]} 53. Kf2 {[%clk 0:00:02]}  a2 {[%clk 0:00:05]} 54. Ra7 {[%clk 0:00:03]}  Bd5 {[%clk 0:00:05]} 55. Ke3 {[%clk 0:00:02]}  Re1+ {[%clk 0:00:04]} 56. Kd4 {[%clk 0:00:00]}  Bb3 {[%clk 0:00:02]} 0-1


[Site "https://www.chess.com"]